bitfinex/quotes_SOLUSD_20240615
["timestamp","ask_amount","ask_price","bid_price","bid_amount"]
[1718451372529,0.8584248,144.4,144.38,0.18]
[1718451372827,0.8584248,144.4,144.38,0.34]
[1718451373543,0.8584248,144.4,144.39,100.0]
[1718451373832,0.8584248,144.4,144.39,100.17]
[1718451374619,0.8584248,144.4,144.39,100.51]
[1718451374805,0.8584248,144.4,144.39,100.68]
[1718451378443,0.8584248,144.4,144.39,0.17]
[1718451378735,0.8584248,144.4,144.38,0.51]
[1718451379432,0.8584248,144.4,144.38,0.17]
[1718451379601,0.8584248,144.4,144.37,121.5]
[1718451380928,0.8584248,144.4,144.39,100.0]
[1718451381127,0.8584248,144.4,144.39,100.68]
[1718451381437,0.8584248,144.4,144.37,126.67]
[1718451381735,0.8584248,144.4,144.38,0.17]
[1718451381913,0.8584248,144.4,144.37,126.67]
[1718451383521,0.8584248,144.4,144.38,0.17]
[1718451384034,0.8584248,144.4,144.37,100.0]
[1718451384240,0.8584248,144.4,144.38,1.38293428]
[1718451385834,0.8584248,144.4,144.36,0.17]
[1718451386010,0.8584248,144.4,144.36,6.36]
[1718451386416,0.8584248,144.4,144.37,100.0]
[1718451387237,0.8584248,144.4,144.37,120.82]
[1718451388231,0.8584248,144.4,144.38,0.17]
[1718451388430,0.8584248,144.4,144.38,0.34]
[1718451389236,0.8584248,144.4,144.37,120.82]
[1718451389441,0.8584248,144.4,144.38,0.17]
[1718451390435,0.8584248,144.4,144.37,100.0]
[1718451390637,0.8584248,144.4,144.36,0.68]
[1718451390638,6.5384248,144.4,144.36,0.68]
[1718451390928,0.8584248,144.4,144.37,0.17]
[1718451398327,0.8584248,144.4,144.37,100.17]
[1718451400449,0.8584248,144.4,144.37,0.17]
[1718451406538,0.8584248,144.4,144.37,127.01]
[1718451408065,15.0917,144.43,144.39,100.17]
[1718451408585,15.0917,144.43,144.4,0.17]
[1718451409730,6.4159,144.47,144.4,0.17]
[1718451409949,22.4247,144.47,144.41,100.0]
[1718451410352,5.68,144.46,144.41,105.68]
[1718451411450,5.68,144.46,144.42,1.38456266]
[1718451411970,5.68,144.45,144.41,100.0]
[1718451413666,5.68,144.44,144.41,100.0]
[1718451414656,5.68,144.44,144.4,0.34]
[1718451414972,5.68,144.45,144.4,0.34]
[1718451416678,5.68,144.45,144.4,0.17]
[1718451417050,5.68,144.44,144.4,0.17]
[1718451421097,22.4247,144.47,144.41,100.0]
[1718451421284,22.4247,144.47,144.42,1.17957909]
[1718451421459,28.1047,144.47,144.42,1.17957909]
[1718451422660,28.1047,144.47,144.41,105.68]
[1718451422869,7.22540422,144.51,144.43,126.5]
[1718451423075,5.68,144.49,144.44,0.17]
[1718451423270,5.68,144.49,144.43,105.68]
[1718451423663,5.68,144.49,144.43,100.0]
[1718451423865,5.68,144.49,144.43,105.68]
[1718451424075,5.68,144.48,144.43,100.0]
[1718451424661,5.68,144.48,144.44,0.17]
[1718451425579,22.8065,144.52,144.44,0.51]
[1718451425782,22.8065,144.52,144.45,100.0]
[1718451425968,5.68,144.49,144.45,100.0]
[1718451426280,5.68,144.49,144.44,0.34]
[1718451426484,5.68,144.49,144.44,0.17]
[1718451426781,5.68,144.48,144.44,0.34]
[1718451427365,22.8065,144.52,144.44,0.34]
[1718451427959,5.68,144.49,144.44,0.34]
[1718451428361,0.33333333,144.48,144.44,0.34]
[1718451430102,6.01333333,144.48,144.44,0.34]
[1718451433069,5.68,144.47,144.42,0.17]
[1718451433282,5.68,144.47,144.42,0.68]
[1718451433483,25.3668,144.52,144.42,0.68]
[1718451433793,5.68,144.47,144.42,0.68]
[1718451434883,5.68,144.47,144.42,0.51]
[1718451435091,5.68,144.47,144.42,0.34]
[1718451438403,5.68,144.47,144.42,6.02]
[1718451439302,5.68,144.48,144.42,6.02]
[1718451442381,5.68,144.47,144.42,5.85]
[1718451442595,5.68,144.47,144.42,0.17]
[1718451443805,16.3708,144.48,144.41,100.0]
[1718451443989,5.68,144.46,144.41,100.0]
[1718451448307,5.68,144.46,144.4,0.51]
[1718451448491,5.68,144.46,144.41,0.17]
[1718451450203,5.68,144.45,144.4,0.17]
[1718451450821,5.68,144.44,144.4,0.17]
[1718451454717,5.68,144.44,144.37,122.2045]
[1718451454928,5.68,144.42,144.37,100.0]
[1718451455098,5.68,144.41,144.36,8.32184864]
[1718451456411,5.68,144.41,144.37,0.17]
[1718451457498,5.68,144.41,144.36,0.68]
[1718451459629,5.68,144.41,144.35,5.68]
[1718451459793,5.68,144.4,144.34,5.68]
[1718451460197,5.68,144.39,144.34,5.68]
[1718451461707,5.68,144.4,144.34,5.68]
[1718451462499,5.68,144.4,144.33,144.47866439]
[1718451462704,5.68,144.39,144.34,6.02]
[1718451464999,5.68,144.4,144.34,6.02]
[1718451465199,16.3708,144.43,144.34,0.34]
[1718451465422,5.68,144.4,144.34,6.02]
[1718451467023,16.3708,144.43,144.35,100.0]
[1718451467226,16.3708,144.43,144.35,105.68]
[1718451467431,5.68,144.4,144.35,105.68]
[1718451468126,5.68,144.41,144.35,105.68]
[1718451469412,5.68,144.4,144.35,105.68]
[1718451471319,5.68,144.4,144.35,100.0]
[1718451471528,5.68,144.4,144.35,105.68]
[1718451472235,5.68,144.4,144.35,100.0]
[1718451472540,5.68,144.4,144.35,105.68]
[1718451473446,5.68,144.4,144.35,100.0]
[1718451473634,5.68,144.4,144.35,105.68]
[1718451476450,5.68,144.4,144.35,100.0]
[1718451479160,5.68,144.4,144.34,126.8]
[1718451479529,5.68,144.39,144.34,121.12]
[1718451479750,5.68,144.39,144.34,0.34]
[1718451482142,5.68,144.38,144.33,8.39751575]
[1718451482340,5.68,144.38,144.32,106.19]
[1718451482662,5.68,144.38,144.33,0.17]
[1718451482851,5.68,144.37,144.33,0.17]
[1718451483027,5.68,144.41,144.32,100.0]
[1718451483364,5.68,144.36,144.32,100.0]
[1718451483680,5.68,144.36,144.31,15.5652]
[1718451483855,5.68,144.36,144.31,21.2452]
[1718451484059,5.68,144.36,144.31,121.2452]
[1718451484259,5.68,144.36,144.31,15.5652]
[1718451484440,5.68,144.36,144.31,21.2452]
[1718451484638,5.68,144.36,144.3,12.0186]
[1718451485638,5.68,144.36,144.31,5.85]
[1718451485955,5.68,144.34,144.28,5.68]
[1718451486454,5.68,144.33,144.28,5.68]
[1718451486661,5.68,144.33,144.27,121.9994]
[1718451486955,5.68,144.33,144.28,5.68]
[1718451488139,0.17,144.38,144.28,26.46]
[1718451488345,5.68,144.35,144.29,126.8]
[1718451489066,5.68,144.34,144.29,5.85]
[1718451489246,5.68,144.33,144.28,5.68]
[1718451489563,5.68,144.34,144.28,5.68]
[1718451489764,5.68,144.33,144.28,5.68]
[1718451490564,5.68,144.33,144.27,121.46]
[1718451490748,5.68,144.31,144.25,129.17751575]
[1718451490955,5.68,144.31,144.26,5.68]
[1718451491157,5.68,144.31,144.25,134.85751575]
[1718451491858,5.68,144.34,144.25,8.39751575]
[1718451492059,5.68,144.34,144.23,127.49673087]
[1718451492060,5.68,144.29,144.23,120.78]
[1718451492364,5.68,144.29,144.24,5.68]
[1718451492741,123.303,144.35,144.24,5.68]
[1718451492964,5.68,144.3,144.24,5.68]
[1718451493158,22.72,144.34,144.26,100.0]
[1718451493566,5.68,144.3,144.26,100.0]
[1718451493872,5.68,144.31,144.26,100.0]
[1718451494243,22.793,144.35,144.27,0.17]
[1718451494472,22.793,144.35,144.28,5.68]
[1718451494772,5.68,144.34,144.29,0.40866814]
[1718451495462,5.68,144.33,144.28,5.68]
[1718451495658,5.68,144.32,144.27,0.17]
[1718451495958,5.68,144.31,144.26,5.68]
[1718451496660,5.68,144.31,144.25,6.02]
[1718451496878,5.68,144.31,144.25,26.8]
[1718451497253,5.68,144.31,144.26,100.0]
[1718451497459,5.68,144.31,144.26,105.68]
[1718451497653,22.793,144.35,144.26,105.68]
[1718451497968,5.68,144.32,144.26,105.68]
[1718451498370,5.68,144.32,144.26,100.0]
[1718451498555,5.68,144.32,144.26,105.68]
[1718451500067,5.68,144.32,144.26,100.0]
[1718451500371,5.68,144.32,144.26,105.68]
[1718451500674,5.68,144.32,144.26,5.68]
[1718451501047,5.68,144.31,144.25,26.8]
[1718451501272,5.68,144.31,144.25,6.02]
[1718451501983,8.2434,144.34,144.25,0.34]
[1718451502163,5.68,144.3,144.25,0.34]
[1718451503555,5.68,144.3,144.25,0.17]
[1718451504479,5.68,144.29,144.23,5.68]
[1718451504648,5.68,144.28,144.22,126.63]
[1718451504851,0.17,144.34,144.25,5.68]
[1718451505053,5.68,144.33,144.26,101.38609978]
[1718451505249,5.68,144.33,144.27,1.38597983]
[1718451505457,5.68,144.33,144.27,7.06597983]
[1718451505673,22.793,144.35,144.29,5.68]
[1718451505979,21.8838,144.35,144.3,1.38572859]
[1718451506457,5.68,144.36,144.3,7.06572859]
[1718451507276,6.3504,144.38,144.3,7.06572859]
[1718451507575,5.68,144.36,144.3,7.06572859]
[1718451509578,5.68,144.36,144.3,107.06572859]
[1718451510471,5.68,144.36,144.3,105.68]
[1718451510671,5.68,144.35,144.3,100.0]
[1718451516380,5.68,144.34,144.3,100.0]
[1718451526377,5.68,144.34,144.31,0.62308177]
[1718451532285,6.3504,144.38,144.27,100.0]
[1718451532286,100.0,144.37,144.27,100.0]
[1718451532467,5.68,144.32,144.27,100.0]
[1718451533479,132.84019856,144.37,144.27,100.0]
[1718451533710,5.68,144.32,144.27,100.0]
[1718451534100,5.68,144.32,144.28,0.44867254]
[1718451536398,5.68,144.32,144.28,1.38587432]
[1718451540409,5.68,144.29,144.26,22.8289]
[1718451541878,16.2908,144.34,144.27,5.68]
[1718451542083,5.68,144.33,144.27,105.85]
[1718451542483,7.21119856,144.37,144.29,105.68]
[1718451542684,5.68,144.35,144.29,105.68]
[1718451549486,5.68,144.34,144.29,105.68]
[1718451551102,5.68,144.35,144.29,105.68]
[1718451551500,5.68,144.35,144.3,1.38439097]
[1718451552305,5.68,144.35,144.29,105.68]
[1718451553501,41.7762,144.38,144.3,5.68]
[1718451553714,5.68,144.35,144.3,5.68]
[1718451557612,5.68,144.35,144.29,105.68]
[1718451563226,5.68,144.34,144.29,105.68]
[1718451563587,5.68,144.34,144.29,100.0]
[1718451574116,25.6286,144.37,144.29,100.0]
[1718451574421,5.68,144.33,144.29,100.0]
[1718451574928,0.33333334,144.32,144.29,100.0]
[1718451581208,0.33333334,144.32,144.29,105.68]
[1718451583224,0.33333334,144.32,144.31,122.0955]
[1718451583407,0.33333334,144.32,144.31,122.2655]
[1718451584611,0.33333334,144.32,144.31,122.4355]
[1718451585007,0.33333334,144.32,144.31,122.7755]
[1718451586544,0.33333334,144.32,144.3,5.68]
[1718451587219,0.33333334,144.32,144.29,126.46]
[1718451587816,0.33333334,144.32,144.29,120.78]
[1718451588037,0.33333334,144.32,144.29,126.46]
[1718451589129,0.33333334,144.32,144.29,120.78]
[1718451589527,0.33333334,144.32,144.29,126.46]
[1718451590053,0.33333334,144.32,144.31,100.0]
[1718451590244,0.33333334,144.32,144.31,106.02]
[1718451590632,0.33333334,144.32,144.31,133.1505]
[1718451590831,1e-08,144.32,144.31,136.59473753]
[1718451591032,5.68,144.4,144.34,100.0]
[1718451591359,5.68,144.4,144.34,105.68]
[1718451591548,5.68,144.4,144.34,5.68]
[1718451591853,6.2155,144.41,144.34,5.68]
[1718451592047,5.68,144.39,144.34,5.68]
[1718451593529,5.68,144.41,144.35,5.68]
[1718451596038,16.4617,144.42,144.35,5.68]
[1718451596241,16.4617,144.42,144.36,5.68]
[1718451596443,22.1417,144.42,144.36,5.68]
[1718451598563,5.68,144.41,144.36,5.68]
[1718451600234,5.68,144.41,144.35,5.68]
[1718451601634,2.5616,144.44,144.37,5.68]
[1718451601854,39.34574179,144.45,144.37,5.68]
[1718451602159,5.68,144.44,144.38,5.68]
[1718451602863,16.4617,144.46,144.38,105.68]
[1718451603037,16.4617,144.46,144.4,5.68]
[1718451603364,22.1417,144.46,144.4,5.68]
[1718451603861,22.1417,144.46,144.41,1.3847248]
[1718451604373,5.68,144.44,144.38,16.6466]
[1718451604660,5.68,144.41,144.36,5.68]
[1718451605969,5.68,144.41,144.35,122.3266]
[1718451606164,5.68,144.4,144.35,16.6466]
[1718451606379,5.68,144.4,144.33,127.0004]
[1718451606547,2.5625,144.39,144.32,16.6466]
[1718451606883,5.68,144.37,144.32,16.6466]
[1718451607247,5.68,144.37,144.29,106.2204]
[1718451607453,5.68,144.35,144.29,111.9004]
[1718451607952,5.68,144.35,144.29,17.9788]
[1718451608161,5.68,144.33,144.28,16.6466]
[1718451608547,5.68,144.33,144.28,22.3266]
[1718451608950,5.68,144.33,144.28,16.6466]
[1718451609164,5.68,144.33,144.28,22.3266]
[1718451610569,5.68,144.34,144.28,22.3266]
[1718451610744,6.0784,144.4,144.3,0.17]
[1718451610953,5.68,144.37,144.32,5.68]
[1718451611144,5.68,144.38,144.32,5.68]
[1718451611565,5.68,144.38,144.33,0.462268]
[1718451611770,5.68,144.38,144.32,5.68]
[1718451611965,21.4523,144.4,144.32,5.68]
[1718451612253,5.68,144.37,144.32,5.68]
[1718451612760,5.68,144.37,144.31,5.68]
[1718451613177,5.68,144.36,144.31,5.68]
[1718451613880,6.0784,144.4,144.32,100.0]
[1718451614078,6.0784,144.4,144.32,105.85]
[1718451614079,5.68,144.38,144.32,105.85]
[1718451614287,5.68,144.37,144.32,5.68]
[1718451615762,5.68,144.37,144.31,5.68]
[1718451616686,5.68,144.36,144.31,5.68]
[1718451619293,5.68,144.37,144.31,5.68]
[1718451619464,5.68,144.38,144.33,5.68]
[1718451619658,5.68,144.39,144.33,5.68]
[1718451620592,5.68,144.38,144.33,5.68]
[1718451622088,5.68,144.38,144.31,6.3099]
[1718451622273,5.68,144.37,144.32,5.68]
[1718451622583,5.68,144.38,144.32,5.68]
[1718451624198,5.68,144.38,144.31,6.3099]
[1718451624376,5.68,144.38,144.32,5.68]
[1718451624573,5.68,144.37,144.31,11.9899]
[1718451632100,5.68,144.37,144.31,11.9899]
[1718451633900,5.68,144.39,144.34,5.68]
[1718451634813,16.3868,144.41,144.34,5.68]
[1718451635016,22.0668,144.41,144.36,5.68]
[1718451635812,22.0668,144.41,144.35,5.68]
[1718451636916,16.3868,144.41,144.35,5.68]
[1718451637125,22.0668,144.41,144.35,5.68]
[1718451638400,22.0668,144.41,144.36,1.38520821]
[1718451638613,6.2044,144.44,144.36,7.06520821]
[1718451638814,5.68,144.42,144.37,5.68]
[1718451639005,6.2044,144.44,144.38,1.38502493]
[1718451639315,5.68,144.42,144.38,1.38502493]
[1718451640623,5.68,144.43,144.38,1.38502493]
[1718451641310,6.2044,144.44,144.38,1.38502493]
[1718451641718,11.8844,144.44,144.38,7.06502493]
[1718451642221,5.68,144.44,144.38,7.06502493]
[1718451642920,8.2418,144.43,144.35,120.78]
[1718451643096,8.2418,144.43,144.37,5.68]
[1718451643097,5.68,144.42,144.37,5.68]
[1718451643841,5.68,144.42,144.36,5.85]
[1718451643997,5.68,144.4,144.35,5.68]
[1718451644201,5.68,144.4,144.34,5.85]
[1718451646702,5.68,144.4,144.34,0.17]
[1718451647021,5.68,144.4,144.34,6.19]
[1718451650230,5.68,144.4,144.35,5.68]
[1718451652131,5.68,144.41,144.35,5.68]
[1718451653915,5.68,144.41,144.34,0.17]
[1718451654121,5.68,144.4,144.35,5.68]
[1718451655435,5.68,144.4,144.34,0.17]
[1718451655622,5.68,144.4,144.35,5.68]
[1718451657134,6.6472,144.42,144.35,105.68]
[1718451657342,6.6472,144.42,144.36,5.68]
[1718451657343,12.3272,144.42,144.36,5.68]
[1718451657738,12.3272,144.42,144.35,100.0]
[1718451657739,5.68,144.41,144.35,105.68]
[1718451659049,5.68,144.41,144.34,0.34]
[1718451659238,6.6472,144.42,144.34,5.85]
[1718451659239,5.68,144.4,144.34,5.85]
[1718451662018,16.3575,144.41,144.34,5.85]
[1718451662221,5.68,144.4,144.34,5.85]
[1718451662424,22.0375,144.41,144.35,5.68]
[1718451662618,16.3575,144.41,144.35,5.68]
[1718451663136,22.0375,144.41,144.35,5.68]
[1718451664753,22.0375,144.41,144.34,0.17]
[1718451664924,22.0375,144.41,144.35,5.68]
[1718451666032,22.0375,144.41,144.34,0.17]
[1718451666036,5.68,144.4,144.34,5.85]
[1718451667855,22.0375,144.41,144.34,5.85]
[1718451668056,22.0375,144.41,144.35,5.68]
[1718451673159,5.68,144.4,144.34,5.85]
[1718451676063,5.68,144.4,144.34,0.17]
[1718451676565,5.68,144.4,144.34,5.85]
[1718451680171,5.68,144.4,144.34,0.17]
[1718451680366,5.68,144.4,144.35,5.68]
[1718451682069,5.68,144.39,144.31,126.48685388]
[1718451682247,5.68,144.38,144.31,100.0]
[1718451682447,16.3172,144.36,144.29,100.0]
[1718451682652,5.68,144.34,144.29,5.68]
[1718451683150,0.33333334,144.33,144.29,5.68]
[1718451683664,0.33333334,144.33,144.27,100.0]
[1718451683853,0.33333334,144.33,144.28,5.68]
[1718451685171,6.01333334,144.33,144.25,124.9357568]
[1718451685374,6.01333334,144.33,144.25,108.6185568]
[1718451685375,5.68,144.32,144.25,108.6185568]
[1718451685556,5.68,144.31,144.26,5.68]
[1718451685980,5.68,144.32,144.26,5.68]
[1718451686447,5.68,144.32,144.27,5.68]
[1718451686649,5.68,144.33,144.27,5.68]
[1718451691253,5.68,144.32,144.27,5.68]
[1718451691452,5.68,144.32,144.26,5.68]
[1718451700575,5.68,144.32,144.25,100.17]
[1718451700576,21.9972,144.32,144.25,100.17]
[1718451700781,5.68,144.31,144.25,105.85]
[1718451704293,5.68,144.31,144.26,5.68]
[1718451704790,28.2268,144.32,144.26,5.68]
[1718451705291,5.68,144.31,144.26,5.68]
[1718451707387,22.5468,144.32,144.26,5.68]
[1718451707580,5.68,144.31,144.26,5.68]
[1718451711499,5.68,144.31,144.25,105.85]
[1718451714082,22.5468,144.32,144.25,105.85]
[1718451714290,5.68,144.31,144.26,5.68]
[1718451718692,28.2268,144.32,144.26,5.68]
[1718451719186,28.2268,144.32,144.25,100.17]
[1718451719597,28.2268,144.32,144.26,5.68]
[1718451719916,5.68,144.31,144.25,105.85]
[1718451721300,5.68,144.31,144.25,5.68]
[1718451721505,5.68,144.3,144.25,5.68]
[1718451721708,5.68,144.3,144.23,100.0]
[1718451721709,5.68,144.3,144.24,5.68]
[1718451722213,22.5468,144.32,144.25,5.68]
[1718451725113,22.5468,144.32,144.23,100.17]
[1718451725310,22.5468,144.32,144.25,5.68]
[1718451726595,22.5468,144.32,144.24,5.68]
[1718451726797,22.5468,144.32,144.25,105.68]
[1718451727007,28.2268,144.32,144.26,5.68]
[1718451729280,22.5468,144.32,144.26,5.68]
[1718451729480,28.2268,144.32,144.26,5.68]
[1718451733205,28.2268,144.32,144.25,100.0]
[1718451733402,22.5468,144.32,144.26,5.68]
[1718451733603,25.1105,144.32,144.26,5.68]
[1718451733810,5.68,144.31,144.26,5.68]
[1718451734115,5.68,144.31,144.25,105.68]
[1718451736830,22.5468,144.32,144.26,5.68]
[1718451737038,28.2268,144.32,144.26,5.68]
[1718451738903,5.68,144.31,144.25,5.68]
[1718451739910,5.68,144.3,144.21,139.40255189]
[1718451740094,5.68,144.28,144.23,5.68]
[1718451742135,145.6214,144.32,144.23,5.68]
[1718451742335,5.68,144.28,144.23,5.68]
[1718451742730,5.68,144.29,144.23,5.68]
[1718451744815,5.68,144.29,144.24,5.68]
[1718451750233,5.68,144.29,144.23,5.68]
[1718451755237,130.2382,144.32,144.23,5.68]
[1718451755439,5.68,144.29,144.21,126.27747111]
[1718451755642,5.68,144.29,144.24,5.68]
[1718451756936,130.2382,144.32,144.24,5.68]
[1718451757140,5.68,144.29,144.24,5.68]
[1718451764349,5.68,144.29,144.22,0.51]
[1718451767654,0.33333334,144.28,144.22,0.51]
[1718451768447,0.33333334,144.28,144.24,5.68]
[1718451770267,0.33333334,144.28,144.23,5.68]
[1718451770433,5.68,144.26,144.2,5.68]
[1718451772136,5.68,144.26,144.19,5.68]
[1718451772351,16.6286,144.27,144.19,105.68]
[1718451772650,0.33333334,144.25,144.2,5.68]
[1718451773439,0.33333334,144.25,144.21,5.68]
[1718451773657,0.33333334,144.25,144.22,5.68]
[1718451775468,0.33333334,144.25,144.23,5.68]
[1718451775668,0.33333334,144.25,144.24,5.68]
[1718451777468,0.33333334,144.25,144.21,100.0]
[1718451777782,0.33333334,144.25,144.23,5.68]
[1718451778339,0.33333334,144.25,144.21,100.0]
[1718451778573,0.33333334,144.25,144.22,0.89413649]
[1718451779963,0.33333334,144.25,144.21,100.0]
[1718451780279,0.33333334,144.25,144.23,5.68]
[1718451782848,0.33333334,144.25,144.24,5.68]
[1718451786476,0.33333334,144.25,144.24,106.36]
[1718451789361,1e-08,144.25,144.24,127.16]
[1718451789674,1e-08,144.25,144.24,143.14312879]
[1718451800084,1e-08,144.25,144.24,136.78312879]
[1718451800281,1e-08,144.25,144.24,105.68]
[1718451800669,1e-08,144.25,144.24,100.0]
[1718451800877,1e-08,144.25,144.24,5.68]
[1718451801065,1e-08,144.25,144.22,136.2137]
[1718451801287,1e-08,144.25,144.24,5.68]
[1718451802078,1e-08,144.25,144.24,5.85]
[1718451802794,1e-08,144.25,144.24,105.85]
[1718451803171,1e-08,144.25,144.24,5.85]
[1718451803372,1e-08,144.25,144.24,105.85]
[1718451804492,1e-08,144.25,144.24,5.85]
[1718451805492,1e-08,144.25,144.24,7.23268397]
[1718451806190,1e-08,144.25,144.24,105.85]
[1718451807617,1e-08,144.25,144.24,100.17]
[1718451807896,1e-08,144.25,144.24,105.85]
[1718451823924,1e-08,144.25,144.24,5.85]
[1718451826911,1e-08,144.25,144.24,105.85]
[1718451828516,1e-08,144.25,144.24,5.85]
[1718451832403,1e-08,144.25,144.24,126.99]
[1718451832738,1e-08,144.25,144.24,143.14312879]
[1718451835206,1e-08,144.25,144.24,137.46312879]
[1718451835403,1e-08,144.25,144.24,143.14312879]
[1718451836091,1e-08,144.25,144.24,137.46312879]
[1718451836295,1e-08,144.25,144.24,143.14312879]
[1718451842856,1e-08,144.25,144.24,158.55682879]
[1718451845118,1e-08,144.25,144.24,152.87682879]
[1718451845332,1e-08,144.25,144.24,143.14312879]
[1718451849859,1e-08,144.25,144.24,116.49312879]
[1718451850059,1e-08,144.25,144.24,6.02]
[1718451850233,1e-08,144.25,144.24,5.85]
[1718451851244,1e-08,144.25,144.24,0.17]
[1718451851451,1e-08,144.25,144.24,5.68]
[1718451852659,1e-08,144.25,144.21,26.50138994]
[1718451852954,1e-08,144.25,144.2,131.39682879]
[1718451853132,1e-08,144.25,144.2,115.98312879]
[1718451853456,1e-08,144.25,144.22,5.68]
[1718451855537,1e-08,144.25,144.2,15.98312879]
[1718451855859,5.68000001,144.25,144.19,5.68]
[1718451856038,1e-08,144.25,144.19,5.68]
[1718451856230,5.68000001,144.25,144.19,5.68]
[1718451857639,27.7926,144.24,144.18,100.0]
[1718451857844,27.7926,144.24,144.19,5.68]
[1718451858068,27.7926,144.24,144.18,5.68]
[1718451858256,5.68,144.23,144.16,107.92400532]
[1718451858576,5.68,144.23,144.17,5.68]
[1718451859070,5.68,144.23,144.17,6.5842406]
[1718451859463,5.68,144.23,144.18,0.90417788]
[1718451860653,22.1126,144.24,144.18,6.58417788]
[1718451860854,22.1126,144.24,144.19,5.68]
[1718451861054,22.1126,144.24,144.2,0.90405247]
[1718451861752,22.1126,144.24,144.19,6.59464515]
[1718451862666,22.1126,144.24,144.2,0.91643796]
[1718451863264,22.1126,144.24,144.2,6.59643796]
[1718451863467,22.1126,144.24,144.2,5.68]
[1718451866677,22.1126,144.24,144.18,0.91685737]
[1718451866967,22.1126,144.24,144.2,5.68]
[1718451868670,22.1126,144.24,144.18,0.91685737]
[1718451869061,22.1126,144.24,144.2,5.68]
[1718451876854,7.6976,144.2,144.12,100.0]
[1718451877060,12.8313,144.18,144.13,5.68]
[1718451877261,13.3788,144.18,144.1,100.0]
[1718451877563,8.2463,144.18,144.12,5.68]
[1718451877762,8.2462,144.18,144.1,120.8]
[1718451877964,5.68,144.18,144.12,5.68]
[1718451879260,5.68,144.18,144.1,120.8]
[1718451879589,5.68,144.18,144.12,5.68]
[1718451879770,22.3275,144.19,144.1,120.8]
[1718451879771,28.0075,144.19,144.13,5.68]
[1718451880371,28.0075,144.19,144.11,1.3874177]
[1718451880574,28.0075,144.19,144.13,5.68]
[1718451883485,22.3275,144.19,144.14,1.38713884]
[1718451883696,28.0075,144.19,144.14,1.38713884]
[1718451883870,22.3275,144.19,144.14,7.06713884]
[1718451884386,22.3275,144.19,144.14,5.68]
[1718451887272,22.3275,144.19,144.15,7.06731296]
[1718451887591,22.3275,144.19,144.15,5.68]
[1718451890199,16.3058,144.19,144.16,7.06689965]
[1718451890375,16.0607,144.22,144.18,5.68]
[1718451890575,16.0607,144.22,144.16,1.38689965]